bitfinex-derivatives/quotes_BTCF0:USTF0_20241116
["timestamp","ask_amount","ask_price","bid_price","bid_amount"]
[1731720774594,5.088e-05,91333.0,91329.0,0.42324524]
[1731720775195,5.088e-05,91333.0,91330.0,0.26075338]
[1731720775393,5.088e-05,91333.0,91331.0,0.26075338]
[1731720778094,5.088e-05,91333.0,91332.0,0.26075338]
[1731720779099,5.088e-05,91333.0,91331.0,0.26075338]
[1731720779297,5.088e-05,91333.0,91330.0,0.26075338]
[1731720779493,5.088e-05,91333.0,91330.0,0.19561462]
[1731720779698,5.088e-05,91333.0,91329.0,0.19561462]
[1731720779895,5.088e-05,91333.0,91322.0,0.19561462]
[1731720780201,0.16371041,91327.0,91319.0,0.03791077]
[1731720780505,0.13100103,91322.0,91318.0,0.12409393]
[1731720780805,0.13100103,91321.0,91316.0,0.0304]
[1731720781005,0.13100103,91320.0,91316.0,0.0304]
[1731720781691,0.13100103,91318.0,91316.0,0.0304]
[1731720781897,0.13100103,91321.0,91316.0,0.0304]
[1731720782095,0.13100103,91320.0,91319.0,0.12409393]
[1731720782313,0.13100103,91324.0,91319.0,0.12409393]
[1731720782494,0.13100103,91325.0,91323.0,0.3608]
[1731720783098,0.13100103,91326.0,91323.0,0.3608]
[1731720783302,0.13100103,91329.0,91323.0,0.3608]
[1731720784102,5.088e-05,91333.0,91323.0,0.3608]
[1731720784103,0.13100103,91330.0,91327.0,0.12409393]
[1731720784296,0.13100103,91329.0,91328.0,0.0332]
[1731720784494,0.13100103,91331.0,91328.0,0.0332]
[1731720784696,0.13100103,91332.0,91329.0,0.033]
[1731720786007,0.13100103,91332.0,91331.0,0.3608]
[1731720786898,5.088e-05,91333.0,91331.0,0.3608]
[1731720787708,5.088e-05,91333.0,91332.0,0.19569052]
[1731720787908,5.088e-05,91333.0,91331.0,0.55649052]
[1731720788109,5.088e-05,91333.0,91320.0,0.32594173]
[1731720788110,5.088e-05,91333.0,91329.0,0.19569052]
[1731720788507,5.088e-05,91333.0,91328.0,0.19569052]
[1731720788695,5.088e-05,91333.0,91323.0,0.3608]
[1731720788696,5.088e-05,91333.0,91325.0,0.19569052]
[1731720791405,0.3608,91329.0,91324.0,0.19569052]
[1731720791609,0.3608,91329.0,91303.0,0.48489393]
[1731720791610,0.08512,91328.0,91322.0,0.19569052]
[1731720792008,0.08512,91328.0,91321.0,0.19569052]
[1731720792407,0.08512,91328.0,91319.0,0.19569052]
[1731720792609,0.08512,91328.0,91320.0,0.19569052]
[1731720792802,0.08512,91328.0,91319.0,0.19569052]
[1731720793312,0.08512,91328.0,91320.0,0.19569052]
[1731720794713,0.08512,91328.0,91314.0,0.03839227]
[1731720794714,0.08512,91328.0,91318.0,0.19569052]
[1731720795102,0.16371041,91320.0,91314.0,0.29914565]
[1731720795305,0.16371041,91320.0,91313.0,0.3608]
[1731720795505,0.16371041,91320.0,91313.0,0.40030767]
[1731720795506,0.13106346,91314.0,91313.0,0.40030767]
[1731720795912,0.13106346,91315.0,91313.0,0.40030767]
[1731720796116,0.13106346,91314.0,91313.0,0.40030767]
[1731720796304,0.13106346,91315.0,91313.0,0.40030767]
[1731720797008,0.13106346,91315.0,91314.0,0.0319]
[1731720797209,0.08512,91323.0,91314.0,0.0319]
[1731720797210,0.13110082,91316.0,91314.0,0.0319]
[1731720797402,0.13110082,91316.0,91314.0,0.15599393]
[1731720797716,0.07263882,91322.0,91315.0,0.0322]
[1731720797911,5.088e-05,91333.0,91321.0,0.48489393]
[1731720798211,5.088e-05,91333.0,91332.0,0.3608]
[1731720798415,0.16376129,91333.0,91322.0,0.0308]
[1731720799110,0.16371041,91332.0,91322.0,0.0308]
[1731720799305,0.16371041,91331.0,91322.0,0.0308]
[1731720800416,0.16376129,91333.0,91322.0,0.0308]
[1731720800604,0.16371041,91332.0,91322.0,0.0308]
[1731720800805,0.16376129,91333.0,91322.0,0.0308]
[1731720801415,0.16371041,91325.0,91321.0,0.001]
[1731720801616,0.16371041,91325.0,91313.0,0.03950767]
[1731720801617,0.3608,91323.0,91313.0,0.03950767]
[1731720801805,0.16393432,91318.0,91309.0,0.3608]
[1731720802206,0.3608,91323.0,91317.0,0.26075338]
[1731720802413,0.08512,91325.0,91320.0,0.38484731]
[1731720802614,0.08512,91325.0,91322.0,0.26075338]
[1731720802912,0.08512,91325.0,91323.0,0.26075338]
[1731720803303,0.08512,91325.0,91324.0,0.26075338]
[1731720804009,0.08512,91325.0,91323.0,0.26075338]
[1731720804416,0.08512,91325.0,91320.0,0.12409393]
[1731720804417,0.08512,91325.0,91322.0,0.26075338]
[1731720805620,0.08512,91325.0,91323.0,0.26075338]
[1731720805918,0.08512,91327.0,91323.0,0.26075338]
[1731720808217,0.08512,91327.0,91322.0,0.26075338]
[1731720809714,0.08512,91327.0,91325.0,0.19594685]
[1731720810314,0.08512,91327.0,91321.0,0.19594685]
[1731720813119,0.12341882,91327.0,91321.0,0.19594685]
[1731720813518,0.12341882,91327.0,91322.0,0.19594685]
[1731720814313,0.12341882,91327.0,91323.0,0.19594685]
[1731720815820,0.12341882,91327.0,91324.0,0.19594685]
[1731720816422,0.12341882,91327.0,91325.0,0.19594685]
[1731720816828,0.12341882,91327.0,91324.0,0.19594685]
[1731720817316,0.24950136,91326.0,91316.0,0.40007101]
[1731720817516,0.16403421,91318.0,91316.0,0.40007101]
[1731720818026,0.16403421,91319.0,91316.0,0.40007101]
[1731720818930,0.16403421,91318.0,91316.0,0.40007101]
[1731720819141,0.16403421,91320.0,91316.0,0.40007101]
[1731720819319,0.16403421,91319.0,91316.0,0.40007101]
[1731720820228,0.16403421,91318.0,91316.0,0.40007101]
[1731720820922,0.16403421,91319.0,91316.0,0.40007101]
[1731720821227,0.16403421,91318.0,91316.0,0.40007101]
[1731720822525,0.16403421,91319.0,91316.0,0.40007101]
[1731720825427,0.12341882,91327.0,91317.0,0.32589002]
[1731720825633,0.12341882,91327.0,91326.0,0.26137089]
[1731720826024,0.12341882,91327.0,91325.0,0.19607801]
[1731720826225,0.12341882,91327.0,91324.0,0.19607801]
[1731720826535,0.12341882,91327.0,91323.0,0.19607801]
[1731720826931,0.12341882,91327.0,91322.0,0.19607801]
[1731720827636,0.12341882,91327.0,91321.0,0.19607801]
[1731720827836,0.3608,91322.0,91318.0,0.19607801]
[1731720828037,0.0623,91321.0,91318.0,0.19607801]
[1731720828425,0.0325,91320.0,91318.0,0.19607801]
[1731720830630,0.3608,91319.0,91318.0,0.19607801]
[1731720831039,0.3608,91319.0,91317.0,0.19607801]
[1731720831225,0.3608,91319.0,91314.0,0.26137089]
[1731720831738,0.08508,91324.0,91315.0,0.26137089]
[1731720831938,5.088e-05,91333.0,91325.0,0.12409393]
[1731720832234,0.19688573,91333.0,91332.0,0.48489393]
[1731720832430,0.05327391,91333.0,91332.0,0.48489393]
[1731720833034,5.088e-05,91333.0,91332.0,0.48489393]
[1731720833425,5.088e-05,91333.0,91332.0,0.3608]
[1731720834347,5.088e-05,91333.0,91323.0,0.0311]
[1731720834838,0.16404853,91333.0,91323.0,0.0311]
[1731720835137,0.3608,91324.0,91318.0,0.19607961]
[1731720835336,0.3608,91324.0,91316.0,0.19607961]
[1731720835541,0.3608,91324.0,91314.0,0.0319]
[1731720835729,0.08508,91324.0,91314.0,0.0319]
[1731720835930,0.21722622,91323.0,91314.0,0.0319]
[1731720836140,0.16399765,91320.0,91317.0,0.3608]
[1731720836341,0.05322737,91322.0,91317.0,0.3608]
[1731720836342,0.16399765,91322.0,91317.0,0.3608]
[1731720836529,0.16399765,91321.0,91317.0,0.3608]
[1731720836936,0.00831209,91320.0,91317.0,0.3608]
[1731720837134,0.00831209,91319.0,91317.0,0.3608]
[1731720837439,0.00831209,91318.0,91317.0,0.3608]
[1731720837843,0.16399765,91322.0,91317.0,0.3608]
[1731720838038,0.16399765,91321.0,91317.0,0.3608]
[1731720838932,0.16399765,91322.0,91317.0,0.3608]
[1731720839743,0.16399765,91326.0,91317.0,0.3608]
[1731720839937,0.16399765,91329.0,91325.0,0.3608]
[1731720840142,0.16399765,91330.0,91325.0,0.3608]
[1731720840444,0.08513088,91333.0,91328.0,0.19607961]
[1731720840638,0.08513088,91333.0,91329.0,0.19607961]
[1731720840840,0.08513088,91333.0,91330.0,0.19607961]
[1731720841045,0.08513088,91333.0,91329.0,0.19607961]
[1731720841539,0.08513088,91333.0,91328.0,0.19607961]
[1731720841740,0.00828293,91332.0,91328.0,0.19607961]
[1731720841948,0.00828293,91331.0,91328.0,0.19607961]
[1731720842151,0.00828293,91330.0,91328.0,0.19607961]
[1731720842335,0.00828293,91330.0,91325.0,0.3608]
[1731720842336,0.00828293,91329.0,91327.0,0.19607961]
[1731720842544,0.00828293,91328.0,91327.0,0.19607961]
[1731720842846,0.00828293,91328.0,91325.0,0.3608]
[1731720843042,0.00832464,91327.0,91325.0,0.3608]
[1731720843247,0.08513088,91333.0,91325.0,0.3608]
[1731720843444,0.00832429,91332.0,91328.0,0.19589564]
[1731720843645,0.00832429,91331.0,91328.0,0.19589564]
[1731720843941,0.08513088,91333.0,91326.0,0.19589564]
[1731720844249,0.08513088,91333.0,91324.0,0.19589564]
[1731720844250,0.00827544,91332.0,91324.0,0.19589564]
[1731720844447,0.00827544,91331.0,91323.0,0.19589564]
[1731720844750,0.08508088,91333.0,91321.0,0.19589564]
[1731720845140,0.08508088,91333.0,91322.0,0.19589564]
[1731720845541,0.0322,91332.0,91322.0,0.19589564]
[1731720845737,0.00829317,91331.0,91322.0,0.19589564]
[1731720845944,0.00829317,91330.0,91322.0,0.19589564]
[1731720846149,0.0322,91332.0,91322.0,0.19589564]
[1731720846150,0.00829317,91329.0,91322.0,0.19589564]
[1731720846347,0.0322,91332.0,91322.0,0.19589564]
[1731720846650,0.00829281,91331.0,91322.0,0.19589564]
[1731720846946,0.00829281,91330.0,91322.0,0.19589564]
[1731720847141,0.00829281,91329.0,91322.0,0.19589564]
[1731720847452,0.00829281,91328.0,91320.0,0.19589564]
[1731720847651,0.00829281,91327.0,91320.0,0.19589564]
[1731720847848,0.0302,91331.0,91320.0,0.19589564]
[1731720848038,0.0302,91331.0,91319.0,0.19589564]
[1731720848039,0.00828061,91330.0,91319.0,0.19589564]
[1731720848244,0.00828061,91329.0,91319.0,0.19589564]
[1731720848440,0.0302,91331.0,91319.0,0.19589564]
[1731720848742,0.00828062,91330.0,91319.0,0.19589564]
[1731720848950,0.00828062,91329.0,91319.0,0.19589564]
[1731720849142,0.0302,91331.0,91319.0,0.19589564]
[1731720849337,0.00828634,91330.0,91319.0,0.19589564]
[1731720849541,0.00828634,91329.0,91319.0,0.19589564]
[1731720849746,0.00828634,91328.0,91320.0,0.19589564]
[1731720849946,0.032,91329.0,91320.0,0.19589564]
[1731720850146,0.3608,91327.0,91319.0,0.19589564]
[1731720850648,0.3608,91327.0,91318.0,0.19589564]
[1731720850843,0.3608,91327.0,91317.0,0.4001654]
[1731720851049,0.12409393,91319.0,91317.0,0.3608]
[1731720851248,0.0082826,91318.0,91317.0,0.3608]
[1731720852053,0.08508,91320.0,91317.0,0.3608]
[1731720855146,0.16399765,91338.0,91317.0,0.62224794]
[1731720855351,0.16399765,91327.0,91325.0,0.3608]
[1731720855656,8.8e-07,91333.0,91326.0,0.45257393]
[1731720855853,8.8e-07,91333.0,91326.0,0.48489393]
[1731720856248,8.8e-07,91333.0,91326.0,0.68086708]
[1731720856557,8.8e-07,91333.0,91326.0,0.48489393]
[1731720858551,0.00164259,91345.0,91327.0,0.32848]
[1731720858755,0.00164259,91345.0,91344.0,0.48489393]
[1731720859653,0.00172131,91345.0,91344.0,0.48489393]
[1731720864657,0.00172131,91345.0,91344.0,0.85122498]
[1731720864862,0.08508,91365.0,91344.0,0.85122498]
[1731720865067,0.08508,91365.0,91357.0,0.3608]
[1731720865360,0.39190001,91367.0,91357.0,0.3608]
[1731720865361,0.03110001,91367.0,91357.0,0.3608]
[1731720865562,0.0305,91367.0,91357.0,0.3608]
[1731720865961,0.3608,91370.0,91361.0,0.12409393]
[1731720866156,0.0331,91377.0,91368.0,0.12409393]
[1731720866457,0.0331,91377.0,91376.0,0.3608]
[1731720869369,0.0331,91377.0,91376.0,0.39937977]
[1731720870267,0.0331,91377.0,91376.0,0.1695501]
[1731720871966,0.0331,91377.0,91376.0,0.20793633]
[1731720872773,0.0331,91377.0,91376.0,0.03838623]
[1731720872967,0.0331,91377.0,91370.0,0.3608]
[1731720874772,0.3608,91376.0,91369.0,0.07193973]
[1731720875275,0.3608,91376.0,91369.0,0.03953973]
[1731720875466,0.3608,91376.0,91362.0,0.0641]
[1731720876682,0.12409393,91363.0,91362.0,0.03885073]
[1731720876873,0.3608,91367.0,91349.0,0.3608]
[1731720877068,0.0324,91362.0,91358.0,0.03889069]
[1731720885570,0.3608,91364.0,91358.0,0.16298462]
[1731720885770,0.16359436,91374.0,91359.0,0.3934]
[1731720886069,0.3608,91375.0,91368.0,0.12409393]
[1731720886582,0.0331,91377.0,91368.0,0.12409393]
[1731720886769,0.16359436,91383.0,91376.0,0.12409393]
[1731720886974,0.36304229,91384.0,91376.0,0.12409393]
[1731720886975,0.36244228,91384.0,91376.0,0.12409393]
[1731720889781,0.59544269,91394.0,91368.0,0.031]
[1731720889782,0.16359436,91392.0,91383.0,0.12409393]
[1731720889978,0.3608,91394.0,91393.0,0.12409393]
[1731720890781,0.3608,91403.0,91393.0,0.12409393]
[1731720893781,0.3608,91403.0,91393.0,0.16335947]
[1731720894485,0.0304,91404.0,91393.0,0.16335947]
[1731720894683,0.3608,91402.0,91393.0,0.16335947]
[1731720902285,0.3608,91402.0,91393.0,0.03926554]
[1731720902486,0.3608,91394.0,91383.0,0.19497091]
[1731720902688,0.3608,91394.0,91383.0,0.03924553]
[1731720902882,0.3608,91394.0,91386.0,0.12409393]
[1731720903081,0.085,91398.0,91386.0,0.12409393]
[1731720904096,0.3608,91402.0,91394.0,0.12409393]
[1731720904585,0.36140001,91412.0,91394.0,0.12409393]
[1731720904586,0.4458,91412.0,91394.0,0.12409393]
[1731720904900,0.0305,91411.0,91394.0,0.12409393]
[1731720905080,0.0305,91411.0,91403.0,0.12409393]
[1731720906490,0.4458,91420.0,91403.0,0.12409393]
[1731720906688,0.4458,91420.0,91404.0,0.0307]
[1731720907492,0.1632563,91418.0,91404.0,0.0307]
[1731720908191,0.3608,91412.0,91394.0,0.07918013]
[1731720908497,0.3608,91404.0,91394.0,0.04838013]
[1731720908691,0.3608,91404.0,91392.0,0.3608]
[1731720908692,0.0331,91403.0,91392.0,0.3608]
[1731720909890,0.3608,91395.0,91388.0,0.12409393]
[1731720910198,0.3608,91395.0,91394.0,0.12409393]
[1731720910887,0.3608,91395.0,91387.0,0.3608]
[1731720911784,0.5240563,91395.0,91387.0,0.3608]
[1731720911979,0.1632563,91393.0,91379.0,0.04802824]
[1731720912180,0.1948563,91392.0,91378.0,0.12409393]
[1731720912393,0.1632563,91391.0,91378.0,0.12409393]
[1731720912985,0.0316,91392.0,91374.0,0.40758236]
[1731720912986,0.3608,91386.0,91374.0,0.40758236]
[1731720913186,0.2275563,91385.0,91375.0,0.12409393]
[1731720913389,0.1632563,91382.0,91375.0,0.12409393]
[1731720914589,0.0643,91385.0,91375.0,0.12409393]
[1731720914590,0.1632563,91380.0,91375.0,0.12409393]
[1731720914786,0.1632563,91381.0,91375.0,0.12409393]
[1731720915591,0.0643,91385.0,91380.0,0.25996121]
[1731720915798,0.0643,91385.0,91384.0,0.19547595]
[1731720916098,0.0643,91385.0,91380.0,0.25996121]
[1731720916099,0.0643,91385.0,91381.0,0.19547595]
[1731720916299,0.0643,91385.0,91374.0,0.04778236]
[1731720916300,0.085,91384.0,91378.0,0.19547595]
[1731720916499,0.085,91384.0,91377.0,0.19547595]
[1731720916711,0.085,91384.0,91376.0,0.19547595]
[1731720916712,0.3608,91378.0,91376.0,0.19547595]
[1731720917203,0.48489393,91378.0,91376.0,0.14557595]
[1731720917396,0.48489393,91378.0,91363.0,0.25996121]
[1731720917595,0.3608,91364.0,91362.0,0.25996121]
[1731720917789,0.3608,91364.0,91360.0,0.25996121]
[1731720917790,0.0323,91363.0,91360.0,0.25996121]
[1731720918001,0.0323,91363.0,91359.0,0.25996121]
[1731720918194,0.0323,91363.0,91358.0,0.30832352]
[1731720918499,0.36136001,91364.0,91358.0,0.04836231]
[1731720918699,0.1173,91377.0,91359.0,0.25996121]
[1731720918890,0.1173,91377.0,91365.0,0.38405514]
[1731720919091,0.1173,91377.0,91365.0,0.25996121]
[1731720919401,0.1173,91377.0,91358.0,0.37331383]
[1731720919402,0.3608,91366.0,91361.0,0.26051592]
[1731720919700,0.3608,91366.0,91360.0,0.26051592]
[1731720919895,0.3608,91366.0,91359.0,0.26051592]
[1731720920390,0.0301,91376.0,91360.0,0.26051592]
[1731720920702,0.3608,91367.0,91358.0,0.30887823]
[1731720920895,0.3608,91359.0,91358.0,8.641e-05]
[1731720921594,0.1161,91366.0,91358.0,8.641e-05]
[1731720921792,0.3608,91359.0,91358.0,8.641e-05]
[1731720929798,0.40844828,91359.0,91358.0,8.641e-05]
[1731720930199,0.73680828,91359.0,91339.0,0.00054]
[1731720930408,0.3608,91343.0,91339.0,0.00054]
[1731720930598,0.085,91342.0,91339.0,0.00054]
[1731720930906,0.1156,91342.0,91339.0,0.00054]
[1731720931102,0.0616,91341.0,91339.0,0.00054]
[1731720931308,0.00011559,91340.0,91339.0,0.00054]
[1731720933500,0.00011559,91340.0,91339.0,8.365e-05]
[1731720935405,0.08515559,91340.0,91339.0,8.365e-05]
[1731720936304,0.00011559,91340.0,91339.0,8.365e-05]
[1731720939118,0.00011559,91340.0,91336.0,0.0939]
[1731720945109,0.00011559,91340.0,91322.0,0.26051592]
[1731720945300,0.3608,91332.0,91322.0,0.04726176]
[1731720945499,0.3608,91332.0,91316.0,9.457e-05]
[1731720945500,0.3608,91323.0,91316.0,5.7e-07]
[1731720945702,0.48489393,91317.0,91307.0,0.04851338]
[1731720946016,0.68118384,91308.0,91307.0,0.04851338]
[1731720946207,0.53813077,91308.0,91289.0,0.04688819]
[1731720946509,0.53813077,91308.0,91282.0,0.3608]
[1731720946510,0.16346648,91301.0,91282.0,0.3608]
[1731720946724,0.085,91301.0,91282.0,0.3608]
[1731720947115,0.24846648,91301.0,91282.0,0.3608]
[1731720947313,0.085,91301.0,91282.0,0.3608]
[1731720947712,0.085,91301.0,91287.0,0.04817319]
[1731720949112,0.085,91301.0,91282.0,0.38269674]
[1731720950313,0.20923233,91301.0,91282.0,0.3608]
[1731720950512,0.20923233,91301.0,91280.0,9.895e-05]
[1731720951517,0.20923233,91301.0,91285.0,0.04830645]
[1731720952117,0.0851384,91301.0,91285.0,0.04830645]
[1731720952303,0.21556062,91301.0,91285.0,0.04830645]
[1731720952706,0.0851384,91301.0,91285.0,0.04830645]
[1731720953618,0.20923233,91301.0,91285.0,0.04830645]
[1731720954716,0.0851384,91301.0,91285.0,0.04830645]
[1731720954906,0.0851784,91301.0,91285.0,0.04830645]
[1731720960317,0.0851784,91301.0,91281.0,0.3608]
[1731720961316,0.0851784,91301.0,91280.0,9.895e-05]
[1731720961739,0.24818907,91301.0,91300.0,0.01422191]
[1731720961908,0.37228315,91301.0,91287.0,0.04841972]
[1731720962109,0.37228315,91301.0,91280.0,9.895e-05]
[1731720962110,0.12409393,91286.0,91280.0,9.895e-05]
[1731720962315,0.08504,91285.0,91280.0,9.895e-05]
[1731720963510,0.08504,91285.0,91280.0,1.519e-05]
[1731720968521,0.12328611,91285.0,91280.0,1.519e-05]
[1731720970319,0.72216001,91288.0,91280.0,1.519e-05]
[1731720970512,0.08508,91287.0,91280.0,1.519e-05]
[1731720974817,0.13040896,91281.0,91280.0,1.519e-05]
[1731720975029,0.16301082,91286.0,91280.0,1.519e-05]
[1731720975224,0.16301082,91281.0,91280.0,1.519e-05]
[1731720975625,0.32802461,91282.0,91280.0,1.519e-05]
[1731720976121,0.19521861,91282.0,91280.0,0.32865519]
[1731720976426,0.3608,91288.0,91280.0,1.519e-05]
[1731720976629,0.3608,91293.0,91280.0,1.519e-05]
[1731720977231,0.08504,91296.0,91280.0,1.519e-05]
[1731720978628,0.3608,91292.0,91280.0,1.519e-05]
[1731720978923,0.05324628,91291.0,91280.0,1.519e-05]
[1731720979123,0.3608,91292.0,91280.0,1.519e-05]
[1731720981024,0.08504,91291.0,91280.0,1.519e-05]
[1731720981333,0.3608,91292.0,91280.0,1.519e-05]
[1731720981334,0.08504,91290.0,91280.0,1.519e-05]
[1731720983041,0.08504,91290.0,91281.0,0.32495152]
[1731720983434,0.08504,91290.0,91280.0,0.32496671]
[1731720984128,0.08504,91290.0,91282.0,0.3608]
[1731720984628,0.08504,91290.0,91283.0,0.32495152]
[1731720984824,0.08504,91290.0,91282.0,0.3608]
[1731720985229,0.08504,91290.0,91282.0,0.68575152]
[1731720985430,0.08504,91290.0,91282.0,0.3608]
[1731720985629,0.08504,91291.0,91282.0,0.3608]
[1731720985834,0.08504,91291.0,91282.0,0.68575152]
[1731720986133,0.3608,91292.0,91283.0,0.68575152]
[1731720986742,0.3608,91292.0,91285.0,0.32495152]
[1731720987129,0.3608,91292.0,91284.0,0.32495152]
[1731720988741,0.3608,91297.0,91284.0,0.32495152]
[1731720990137,0.3608,91289.0,91281.0,0.32495152]
[1731720990339,0.0315,91288.0,91280.0,1.519e-05]
[1731720991142,0.0306,91287.0,91280.0,1.519e-05]
[1731720991837,0.3608,91281.0,91280.0,1.519e-05]
[1731720997445,0.3608,91281.0,91276.0,0.32495152]
[1731720997743,0.3608,91281.0,91272.0,0.32495152]
[1731720997949,0.05325395,91280.0,91270.0,0.03793972]
[1731720998247,0.05325395,91280.0,91269.0,0.3608]
[1731720999341,0.3608,91281.0,91269.0,0.39983159]
[1731720999652,0.3608,91272.0,91269.0,0.03903159]
[1731720999856,0.3608,91272.0,91260.0,0.00012066]
[1731721002342,0.3608,91264.0,91260.0,0.00012066]
[1731721002542,0.0319,91263.0,91260.0,0.00012066]
[1731721005657,0.0319,91263.0,91262.0,0.26173955]
[1731721006654,0.0319,91263.0,91260.0,0.00012066]
[1731721006655,0.0319,91263.0,91261.0,0.26173955]
[1731721008350,0.0319,91263.0,91260.0,0.26186021]
[1731721008757,0.0319,91263.0,91261.0,0.26173955]
[1731721009253,0.0319,91263.0,91260.0,0.26186021]
[1731721009560,0.0319,91263.0,91261.0,0.26173955]
[1731721009746,0.0319,91263.0,91260.0,0.26186021]
[1731721010150,0.0319,91263.0,91261.0,0.26173955]
[1731721010759,0.0319,91263.0,91260.0,0.00012066]
[1731721011143,0.0319,91263.0,91261.0,0.26173955]
[1731721011349,0.0319,91263.0,91260.0,0.26186021]
[1731721011550,0.0319,91263.0,91261.0,0.26173955]
[1731721012754,0.0319,91263.0,91260.0,0.00012066]
[1731721017360,0.3608,91261.0,91260.0,0.00012066]
[1731721018665,0.78489393,91261.0,91247.0,0.26175351]
[1731721018965,0.12409393,91246.0,91235.0,0.001]
[1731721019158,0.3608,91236.0,91228.0,0.03782771]
[1731721019462,0.3608,91236.0,91219.0,0.3608]
[1731721019660,0.3608,91227.0,91219.0,0.3608]
[1731721020369,0.3608,91227.0,91219.0,0.39837749]
[1731721021054,0.3608,91227.0,91219.0,0.03757749]
[1731721021256,0.3608,91227.0,91215.0,0.12409393]
[1731721021567,0.3608,91227.0,91215.0,0.16193592]
[1731721021866,0.3608,91218.0,91215.0,0.03784199]
[1731721022067,0.3608,91218.0,91214.0,0.03047793]
[1731721023170,0.3608,91218.0,91214.0,7.793e-05]
[1731721023461,0.3608,91215.0,91214.0,7.793e-05]
[1731721023663,0.44584,91215.0,91214.0,7.793e-05]
[1731721024351,0.3608,91215.0,91214.0,7.793e-05]
[1731721024556,0.44584,91215.0,91214.0,7.793e-05]
[1731721025570,0.3608,91215.0,91214.0,7.793e-05]
[1731721025763,0.44588,91215.0,91214.0,7.793e-05]
[1731721026451,0.3608,91215.0,91214.0,7.793e-05]
[1731721026653,0.44588,91215.0,91214.0,7.793e-05]
[1731721028459,0.3608,91218.0,91214.0,7.793e-05]
[1731721028661,0.08508,91215.0,91214.0,7.793e-05]
[1731721031963,0.3608,91218.0,91214.0,7.793e-05]
[1731721032169,0.08508,91217.0,91214.0,7.793e-05]
[1731721033371,0.08508,91216.0,91214.0,7.793e-05]
[1731721034074,0.3608,91218.0,91214.0,7.793e-05]
[1731721034271,0.18149246,91477.0,91217.0,0.12409393]
[1731721034272,0.3608,91233.0,91217.0,0.12409393]
[1731721034458,0.3608,91233.0,91220.0,0.3608]
[1731721034967,0.3608,91233.0,91218.0,0.0643]
[1731721035161,0.3608,91224.0,91218.0,0.0313]
[1731721035357,0.44588,91224.0,91218.0,0.0313]
[1731721035861,0.3608,91224.0,91218.0,0.0313]
[1731721037858,0.08508,91230.0,91218.0,0.0313]
[1731721038367,0.3608,91234.0,91218.0,0.07863801]
[1731721038563,0.3608,91234.0,91218.0,0.0313]
[1731721040466,0.00010328,91235.0,91233.0,0.12409393]
[1731721040666,0.00010328,91235.0,91234.0,0.0624]
[1731721041972,0.0051,91251.0,91234.0,0.39124]
[1731721042165,0.09014,91260.0,91244.0,0.12409393]
[1731721042359,0.13046744,91262.0,91244.0,0.12409393]
[1731721042574,0.00174,91263.0,91244.0,0.12409393]
[1731721042575,0.08504,91260.0,91244.0,0.12409393]
[1731721042874,9.929e-05,91255.0,91244.0,0.12409393]
[1731721044467,9.929e-05,91255.0,91244.0,0.1710841]
[1731721045064,9.929e-05,91255.0,91245.0,0.0311]
[1731721047175,2.9e-07,91255.0,91254.0,0.3608]
[1731721047376,2.9e-07,91255.0,91254.0,0.44584]
[1731721047676,2.9e-07,91255.0,91254.0,0.7746]
[1731721048481,2.9e-07,91255.0,91254.0,1.27009114]
[1731721048679,2.9e-07,91255.0,91254.0,0.97009114]
[1731721049378,2.9e-07,91255.0,91254.0,0.7746]
[1731721050569,0.00170029,91263.0,91254.0,0.44584]
[1731721050774,2.9e-07,91263.0,91262.0,0.48489393]
[1731721050966,0.0051,91276.0,91262.0,0.81361393]
[1731721051170,0.0051,91286.0,91275.0,0.48489393]
[1731721051378,0.3608,91294.0,91287.0,0.12409393]
[1731721051581,8.453e-05,91293.0,91287.0,0.01877055]
[1731721052174,8.453e-05,91293.0,91292.0,0.3608]
[1731721052766,8.453e-05,91293.0,91287.0,0.01877055]
[1731721054474,8.453e-05,91293.0,91287.0,0.06542977]
[1731721055175,8.453e-05,91293.0,91291.0,0.3608]
[1731721055565,0.0051,91308.0,91292.0,0.3286]
[1731721055766,0.0051,91315.0,91304.0,0.12409393]
[1731721055976,0.0924,91319.0,91304.0,0.12409393]
[1731721056877,0.00010318,91318.0,91304.0,0.12409393]
[1731721057680,0.00010318,91318.0,91304.0,0.17099347]
[1731721058381,0.00010318,91318.0,91309.0,0.3608]
[1731721060485,0.00010318,91318.0,91304.0,0.17099347]
[1731721067587,0.3608,91311.0,91304.0,0.04689954]
[1731721067780,0.3608,91311.0,91296.0,0.12409393]
[1731721068584,0.3608,91311.0,91304.0,0.12409393]
[1731721068885,0.3608,91316.0,91304.0,0.12409393]
[1731721069094,0.3608,91316.0,91299.0,0.3608]
[1731721069095,0.3608,91316.0,91313.0,0.12409393]
[1731721071289,0.3608,91316.0,91313.0,0.171952]
[1731721071590,0.3608,91316.0,91313.0,0.04785807]
[1731721071894,0.3608,91316.0,91303.0,0.12409393]
[1731721072189,0.3608,91316.0,91304.0,0.01711256]
[1731721072381,0.3608,91316.0,91305.0,0.01711256]
[1731721072577,0.3608,91316.0,91306.0,0.01711256]
[1731721072779,0.3608,91316.0,91307.0,0.01711256]
[1731721072981,0.3608,91316.0,91308.0,0.01711256]
[1731721073189,0.3608,91316.0,91303.0,0.12409393]
[1731721073379,0.49126744,91316.0,91304.0,0.01711275]
[1731721073586,0.49126744,91316.0,91305.0,0.01711275]
[1731721073779,0.13046744,91315.0,91306.0,0.01711275]
[1731721073983,0.49126744,91316.0,91301.0,0.12409393]
[1731721074295,0.13046744,91315.0,91302.0,0.01711276]
[1731721074486,0.13046744,91315.0,91303.0,0.01711276]
[1731721074790,0.13046744,91315.0,91304.0,0.01711276]
[1731721074990,0.13046744,91314.0,91305.0,0.01711276]
[1731721075296,0.3608,91316.0,91301.0,0.12409393]
[1731721075297,0.13046744,91311.0,91306.0,0.01711276]
[1731721075486,0.13046744,91311.0,91307.0,0.01711276]
[1731721075789,0.13046744,91312.0,91308.0,0.01711276]
[1731721075990,0.13046744,91312.0,91301.0,0.12409393]
[1731721076189,0.13046744,91312.0,91302.0,0.01711272]
[1731721076397,0.3608,91316.0,91303.0,0.01711272]
[1731721076398,0.13046744,91309.0,91303.0,0.01711272]
[1731721076593,0.13046744,91309.0,91304.0,0.01711272]
[1731721076794,0.13046744,91309.0,91305.0,0.0171125]
[1731721076992,0.13046744,91309.0,91306.0,0.0171125]
[1731721077288,0.52465626,91316.0,91301.0,0.12409393]
[1731721077289,0.13046744,91308.0,91301.0,0.12409393]
[1731721077499,0.13046744,91308.0,91302.0,0.01711249]
[1731721077687,0.3608,91316.0,91303.0,0.01711249]
[1731721077688,0.13046744,91307.0,91303.0,0.01711249]
[1731721077884,0.13046744,91307.0,91304.0,0.01711249]
[1731721078085,0.13046744,91307.0,91305.0,0.01711249]